[Event "Early-Titled-Tuesday-Blitz-March-26-2024"]
[Site "Chess.com"]
[Date "2024.03.26"]
[Round "7"]
[White "Yaacovn"]
[Black "Adar_07"]
[Result "1-0"]
[WhiteElo "2909"]
[BlackElo "2794"]
[TimeControl "180+1"]
[EndTime "9:14:40 PDT"]
[Termination "Yaacovn won by resignation"]

1. d4 {[%clk 0:03:00]} 1... Nf6 {[%clk 0:02:59.4]} 2. e3 {[%clk 0:02:59.9]} 2...
b6 {[%clk 0:02:58.1]} 3. Nf3 {[%clk 0:02:41.3]} 3... Bb7 {[%clk 0:02:58.1]} 4.
Be2 {[%clk 0:02:41.8]} 4... e6 {[%clk 0:02:56.1]} 5. O-O {[%clk 0:02:42.2]} 5...
h6 {[%clk 0:02:56.1]} 6. b3 {[%clk 0:02:42.6]} 6... g5 {[%clk 0:02:56.1]} 7. Bb2
{[%clk 0:02:43]} 7... g4 {[%clk 0:02:56.5]} 8. Ne1 {[%clk 0:02:43.2]} 8... h5
{[%clk 0:02:54.6]} 9. c4 {[%clk 0:02:43.2]} 9... Rg8 {[%clk 0:02:47.3]} 10. Nc3
{[%clk 0:02:42.4]} 10... h4 {[%clk 0:02:44.6]} 11. d5 {[%clk 0:02:42.4]} 11...
Bb4 {[%clk 0:02:39.5]} 12. dxe6 {[%clk 0:02:33.4]} 12... fxe6 {[%clk 0:02:39.2]}
13. Nd3 {[%clk 0:02:33.4]} 13... Bd6 {[%clk 0:02:37.2]} 14. Nf4 {[%clk
0:02:30.6]} 14... Na6 {[%clk 0:02:03.9]} 15. Nb5 {[%clk 0:02:30.2]} 15... Bxf4
{[%clk 0:01:58.6]} 16. exf4 {[%clk 0:02:30]} 16... g3 {[%clk 0:01:58.4]} 17.
fxg3 {[%clk 0:02:24.2]} 17... hxg3 {[%clk 0:01:59.3]} 18. h3 {[%clk 0:02:22.4]}
18... Qe7 {[%clk 0:01:53.3]} 19. Qd4 {[%clk 0:02:15.5]} 19... Rf8 {[%clk
0:01:46.3]} 20. f5 {[%clk 0:02:10.5]} 20... O-O-O {[%clk 0:01:34.6]} 21. Bf3
{[%clk 0:02:02.9]} 21... exf5 {[%clk 0:00:52.9]} 22. Rae1 {[%clk 0:01:58.6]}
22... Ne4 {[%clk 0:00:47.1]} 23. Nxa7+ {[%clk 0:01:52.9]} 23... Kb8 {[%clk
0:00:47.1]} 24. Nb5 {[%clk 0:01:53.2]} 24... Nb4 {[%clk 0:00:40.9]} 25. Bxe4
{[%clk 0:01:45.4]} 25... fxe4 {[%clk 0:00:31.4]} 26. Ba3 {[%clk 0:01:32.9]}
26... Rxf1+ {[%clk 0:00:19.1]} 27. Rxf1 {[%clk 0:01:32.6]} 27... Bc6 {[%clk
0:00:10.7]} 28. Nc3 {[%clk 0:01:31.4]} 28... Re8 {[%clk 0:00:08.7]} 29. Re1
{[%clk 0:01:21.5]} 29... Nc2 {[%clk 0:00:08.3]} 30. Bxe7 {[%clk 0:01:20.6]}
30... Nxd4 {[%clk 0:00:08.9]} 31. Bh4 {[%clk 0:01:14]} 31... Kb7 {[%clk
0:00:07.2]} 32. Bxg3 {[%clk 0:01:13.3]} 32... Rg8 {[%clk 0:00:07.8]} 33. Kh2
{[%clk 0:01:13.1]} 33... Nf5 {[%clk 0:00:08.2]} 34. Bf4 {[%clk 0:01:12.6]} 34...
e3 {[%clk 0:00:08.6]} 35. Nd5 {[%clk 0:01:12.6]} 35... d6 {[%clk 0:00:06.2]} 36.
g4 {[%clk 0:01:11.9]} 36... Nd4 {[%clk 0:00:05.8]} 37. Rxe3 {[%clk 0:01:10.9]}
37... Rf8 {[%clk 0:00:05.9]} 38. Kg3 {[%clk 0:01:10]} 38... Nc2 {[%clk
0:00:04.6]} 39. Re7 {[%clk 0:01:09.1]} 39... Bxd5 {[%clk 0:00:04.7]} 40. cxd5
{[%clk 0:01:10]} 40... Nb4 {[%clk 0:00:05.3]} 41. Bxd6 {[%clk 0:01:08.8]} 41...
Nxd5 {[%clk 0:00:05.7]} 42. Rxc7+ {[%clk 0:01:08.8]} 42... Nxc7 {[%clk
0:00:05.7]} 43. Bxf8 {[%clk 0:01:09.6]} 43... Ne6 {[%clk 0:00:06.6]} 44. Bd6
{[%clk 0:01:08.8]} 44... Kc6 {[%clk 0:00:07]} 45. Bf4 {[%clk 0:01:08.7]} 45...
Kd5 {[%clk 0:00:07.5]} 46. Be3 {[%clk 0:01:08.6]} 46... Ke4 {[%clk 0:00:07.9]}
47. Bxb6 {[%clk 0:01:08.5]} 1-0

[Event "Early-Titled-Tuesday-Blitz-March-26-2024"]
[Site "Chess.com"]
[Date "2024.03.26"]
[Round "7"]
[White "ChristopherYoo"]
[Black "Dixit_Nikhil"]
[Result "1-0"]
[WhiteElo "2961"]
[BlackElo "2645"]
[TimeControl "180+1"]
[EndTime "9:14:41 PDT"]
[Termination "ChristopherYoo won by checkmate"]

1. Nf3 {[%clk 0:03:00.9]} 1... Nf6 {[%clk 0:02:59.5]} 2. g3 {[%clk 0:02:59.7]}
2... g6 {[%clk 0:03:00.1]} 3. Bg2 {[%clk 0:03:00.1]} 3... Bg7 {[%clk 0:03:00.8]}
4. O-O {[%clk 0:03:00.9]} 4... O-O {[%clk 0:03:01.6]} 5. d4 {[%clk 0:03:00.9]}
5... d6 {[%clk 0:03:02.3]} 6. c4 {[%clk 0:02:59.4]} 6... Nc6 {[%clk 0:03:02.5]}
7. Nc3 {[%clk 0:02:59.9]} 7... e5 {[%clk 0:03:02]} 8. dxe5 {[%clk 0:03:00.5]}
8... dxe5 {[%clk 0:03:01.8]} 9. Be3 {[%clk 0:03:01]} 9... Be6 {[%clk 0:02:59.3]}
10. Qa4 {[%clk 0:02:59.8]} 10... Qc8 {[%clk 0:02:40.5]} 11. Rfd1 {[%clk
0:02:58.1]} 11... Rd8 {[%clk 0:02:27.9]} 12. Rxd8+ {[%clk 0:02:50.7]} 12... Qxd8
{[%clk 0:02:28.8]} 13. Rd1 {[%clk 0:02:50.7]} 13... Qe8 {[%clk 0:02:27.2]} 14.
Nd5 {[%clk 0:02:50]} 14... Rc8 {[%clk 0:01:54.3]} 15. Ng5 {[%clk 0:02:45.7]}
15... Bd7 {[%clk 0:01:47.3]} 16. Qb3 {[%clk 0:02:40.8]} 16... Nd4 {[%clk
0:01:25.7]} 17. Bxd4 {[%clk 0:02:38.7]} 17... exd4 {[%clk 0:01:26.1]} 18. Nxf6+
{[%clk 0:02:28.5]} 18... Bxf6 {[%clk 0:01:23.6]} 19. Ne4 {[%clk 0:02:29.1]}
19... Bg7 {[%clk 0:01:18.5]} 20. Qxb7 {[%clk 0:02:28.2]} 20... Bf5 {[%clk
0:01:13]} 21. Qa6 {[%clk 0:02:09.9]} 21... Bxe4 {[%clk 0:01:02.9]} 22. Bxe4
{[%clk 0:02:07.7]} 22... Rb8 {[%clk 0:01:03.4]} 23. Bf3 {[%clk 0:02:07.2]} 23...
Rxb2 {[%clk 0:00:55.4]} 24. Qxa7 {[%clk 0:02:07.5]} 24... Qb8 {[%clk 0:00:53]}
25. Qxb8+ {[%clk 0:02:03.9]} 25... Rxb8 {[%clk 0:00:52.4]} 26. a4 {[%clk
0:02:04.2]} 26... Rb4 {[%clk 0:00:48.4]} 27. Ra1 {[%clk 0:02:03.9]} 27... d3
{[%clk 0:00:42.9]} 28. Ra2 {[%clk 0:02:03.9]} 28... dxe2 {[%clk 0:00:29.6]} 29.
Bxe2 {[%clk 0:02:03.7]} 29... Rb2 {[%clk 0:00:29.8]} 30. Rxb2 {[%clk 0:02:04.3]}
30... Bxb2 {[%clk 0:00:30.2]} 31. a5 {[%clk 0:02:05]} 31... Bd4 {[%clk
0:00:30.8]} 32. a6 {[%clk 0:02:05.3]} 32... Kf8 {[%clk 0:00:29.7]} 33. Kg2
{[%clk 0:02:05.4]} 33... Ke7 {[%clk 0:00:29.6]} 34. f4 {[%clk 0:02:05.7]} 34...
f6 {[%clk 0:00:27.8]} 35. Kf3 {[%clk 0:02:05.6]} 35... Kd6 {[%clk 0:00:28.2]}
36. g4 {[%clk 0:02:03.6]} 36... g5 {[%clk 0:00:27.5]} 37. Ke4 {[%clk 0:02:02.3]}
37... Bg1 {[%clk 0:00:25.1]} 38. fxg5 {[%clk 0:02:01.7]} 38... fxg5 {[%clk
0:00:25.3]} 39. h3 {[%clk 0:02:02.2]} 39... Ke6 {[%clk 0:00:24.3]} 40. Bd1
{[%clk 0:01:57.6]} 40... h6 {[%clk 0:00:24.4]} 41. Ba4 {[%clk 0:01:57.3]} 41...
Bc5 {[%clk 0:00:23.6]} 42. Bc6 {[%clk 0:01:55.6]} 42... Bb6 {[%clk 0:00:23.8]}
43. Bd5+ {[%clk 0:01:55.3]} 43... Kf6 {[%clk 0:00:22.1]} 44. Bg8 {[%clk
0:01:55.2]} 44... c6 {[%clk 0:00:17.2]} 45. Bd5 {[%clk 0:01:38.1]} 45... Ke7
{[%clk 0:00:11.9]} 46. Bxc6 {[%clk 0:01:37.4]} 46... Kd6 {[%clk 0:00:12.5]} 47.
Bb5 {[%clk 0:01:36.6]} 47... Kc7 {[%clk 0:00:12.7]} 48. Kf5 {[%clk 0:01:36]}
48... Bc5 {[%clk 0:00:09.7]} 49. Kg6 {[%clk 0:01:36.5]} 49... Be3 {[%clk
0:00:10]} 50. Kxh6 {[%clk 0:01:35.9]} 50... Kb6 {[%clk 0:00:10.6]} 51. Kh5
{[%clk 0:01:33.6]} 51... Bd2 {[%clk 0:00:10.6]} 52. h4 {[%clk 0:01:34.1]} 52...
gxh4 {[%clk 0:00:11.5]} 53. Kxh4 {[%clk 0:01:34.8]} 53... Ka7 {[%clk 0:00:12]}
54. g5 {[%clk 0:01:35]} 54... Kb6 {[%clk 0:00:12.4]} 55. g6 {[%clk 0:01:35.7]}
55... Bc3 {[%clk 0:00:13.3]} 56. Kg5 {[%clk 0:01:35.8]} 56... Bg7 {[%clk
0:00:14.2]} 57. Kf5 {[%clk 0:01:36.4]} 57... Ka7 {[%clk 0:00:15.1]} 58. Ke6
{[%clk 0:01:36.9]} 58... Kb6 {[%clk 0:00:15.9]} 59. Kf7 {[%clk 0:01:37.8]} 59...
Bh6 {[%clk 0:00:16.5]} 60. g7 {[%clk 0:01:38.7]} 60... Bxg7 {[%clk 0:00:17.1]}
61. Kxg7 {[%clk 0:01:39.6]} 61... Ka7 {[%clk 0:00:17.8]} 62. Kf6 {[%clk
0:01:40.3]} 62... Kb6 {[%clk 0:00:18.7]} 63. Kf5 {[%clk 0:01:41]} 63... Ka7
{[%clk 0:00:19.6]} 64. Ke6 {[%clk 0:01:41.5]} 64... Kb6 {[%clk 0:00:20.5]} 65.
Kd6 {[%clk 0:01:42.1]} 65... Ka7 {[%clk 0:00:21.4]} 66. Kc7 {[%clk 0:01:42.6]}
66... Ka8 {[%clk 0:00:21.9]} 67. Kb6 {[%clk 0:01:43.3]} 67... Kb8 {[%clk
0:00:22.2]} 68. a7+ {[%clk 0:01:43.8]} 68... Kc8 {[%clk 0:00:23.1]} 69. a8=R#
{[%clk 0:01:42.9]} 1-0

[Event "Early-Titled-Tuesday-Blitz-March-26-2024"]
[Site "Chess.com"]
[Date "2024.03.26"]
[Round "7"]
[White "zverr1"]
[Black "Kostukov_Alex"]
[Result "1/2-1/2"]
[WhiteElo "2523"]
[BlackElo "2293"]
[TimeControl "180+1"]
[EndTime "9:14:43 PDT"]
[Termination "Game drawn by repetition"]

1. e4 {[%clk 0:03:00.9]} 1... c5 {[%clk 0:02:58.9]} 2. Nf3 {[%clk 0:03:01.1]}
2... g6 {[%clk 0:02:57.8]} 3. d4 {[%clk 0:03:00.8]} 3... cxd4 {[%clk 0:02:55.9]}
4. Nxd4 {[%clk 0:03:01.7]} 4... Bg7 {[%clk 0:02:55.9]} 5. c4 {[%clk 0:03:02.1]}
5... Nc6 {[%clk 0:02:55.7]} 6. Be3 {[%clk 0:03:02.5]} 6... Nf6 {[%clk 0:02:55]}
7. Nc3 {[%clk 0:03:02.6]} 7... Nxd4 {[%clk 0:02:54.8]} 8. Bxd4 {[%clk
0:03:02.8]} 8... Qa5 {[%clk 0:02:54.7]} 9. f3 {[%clk 0:02:49.2]} 9... d6 {[%clk
0:02:51.6]} 10. Be2 {[%clk 0:02:48.2]} 10... O-O {[%clk 0:02:51]} 11. O-O {[%clk
0:02:48.1]} 11... Be6 {[%clk 0:02:50.8]} 12. Rc1 {[%clk 0:02:46.5]} 12... Rfc8
{[%clk 0:02:50]} 13. b3 {[%clk 0:02:34.3]} 13... a6 {[%clk 0:02:49.6]} 14. Na4
{[%clk 0:02:17]} 14... Nd7 {[%clk 0:02:44.8]} 15. Bxg7 {[%clk 0:02:12.7]} 15...
Kxg7 {[%clk 0:02:45.2]} 16. Qd4+ {[%clk 0:02:13.4]} 16... f6 {[%clk 0:02:37.2]}
17. Rfd1 {[%clk 0:02:01.1]} 17... b5 {[%clk 0:02:30.5]} 18. cxb5 {[%clk
0:01:55.4]} 18... axb5 {[%clk 0:02:30.2]} 19. Nc3 {[%clk 0:01:50.8]} 19... b4
{[%clk 0:02:05.9]} 20. Na4 {[%clk 0:01:45.8]} 20... Nc5 {[%clk 0:01:57.3]} 21.
Nxc5 {[%clk 0:01:39.4]} 21... dxc5 {[%clk 0:01:53.3]} 22. Qb2 {[%clk 0:01:33.9]}
22... Qxa2 {[%clk 0:01:51.6]} 23. Qxa2 {[%clk 0:01:22.9]} 23... Rxa2 {[%clk
0:01:50.9]} 24. Bc4 {[%clk 0:01:23.8]} 24... Kf7 {[%clk 0:01:37.4]} 25. Bxe6+
{[%clk 0:01:15.3]} 25... Kxe6 {[%clk 0:01:37]} 26. Rd5 {[%clk 0:01:16.2]} 26...
Rb2 {[%clk 0:01:21.1]} 27. Rcxc5 {[%clk 0:01:10.8]} 27... Rxc5 {[%clk
0:01:19.7]} 28. Rxc5 {[%clk 0:01:11.7]} 28... Rxb3 {[%clk 0:01:20.2]} 29. Kf2
{[%clk 0:01:10.8]} 29... Kd6 {[%clk 0:01:17.8]} 30. Rc8 {[%clk 0:01:06.6]} 30...
Rb2+ {[%clk 0:01:12.1]} 31. Kg3 {[%clk 0:01:06.4]} 31... b3 {[%clk 0:01:09.3]}
32. h4 {[%clk 0:01:04.8]} 32... h5 {[%clk 0:01:06.4]} 33. Rc3 {[%clk 0:00:54.7]}
33... Ke5 {[%clk 0:01:05]} 34. Rd3 {[%clk 0:00:52.7]} 34... Rb1 {[%clk
0:00:56.9]} 35. Rd5+ {[%clk 0:00:52.7]} 35... Ke6 {[%clk 0:00:56.7]} 36. Kf4
{[%clk 0:00:47]} 36... Kf7 {[%clk 0:00:36.3]} 37. Rb5 {[%clk 0:00:44.9]} 37...
Ke6 {[%clk 0:00:26.5]} 38. Rd5 {[%clk 0:00:44.8]} 38... Rg1 {[%clk 0:00:21.5]}
39. Rd2 {[%clk 0:00:40]} 39... Rb1 {[%clk 0:00:17.9]} 40. Rd5 {[%clk 0:00:40]}
1/2-1/2

[Event "Early-Titled-Tuesday-Blitz-March-26-2024"]
[Site "Chess.com"]
[Date "2024.03.26"]
[Round "7"]
[White "Iball95"]
[Black "wqws"]
[Result "1-0"]
[WhiteElo "2889"]
[BlackElo "2736"]
[TimeControl "180+1"]
[EndTime "9:14:44 PDT"]
[Termination "Iball95 won by resignation"]

1. e4 {[%clk 0:02:59.6]} 1... e5 {[%clk 0:02:59.7]} 2. Nf3 {[%clk 0:03:00.1]}
2... Nc6 {[%clk 0:03:00.2]} 3. Nc3 {[%clk 0:03:00.4]} 3... Nf6 {[%clk 0:03:00]}
4. Bb5 {[%clk 0:03:00.9]} 4... Nd4 {[%clk 0:02:59.7]} 5. Nxd4 {[%clk 0:03:01.1]}
5... exd4 {[%clk 0:02:59.9]} 6. e5 {[%clk 0:03:01.1]} 6... dxc3 {[%clk
0:02:56.8]} 7. exf6 {[%clk 0:03:02]} 7... Qxf6 {[%clk 0:02:48.5]} 8. dxc3 {[%clk
0:03:02]} 8... Qe5+ {[%clk 0:02:48.6]} 9. Be2 {[%clk 0:03:02.2]} 9... d5 {[%clk
0:02:46.2]} 10. O-O {[%clk 0:03:01.6]} 10... Bd6 {[%clk 0:02:45.9]} 11. g3
{[%clk 0:03:01]} 11... O-O {[%clk 0:02:44.1]} 12. Re1 {[%clk 0:02:58]} 12... c6
{[%clk 0:02:42.7]} 13. Bd3 {[%clk 0:02:55.3]} 13... Qf6 {[%clk 0:02:42.8]} 14.
Qh5 {[%clk 0:02:55.3]} 14... h6 {[%clk 0:02:39.8]} 15. Be3 {[%clk 0:02:54.8]}
15... Bd7 {[%clk 0:02:35.1]} 16. h4 {[%clk 0:02:49.8]} 16... Qe5 {[%clk
0:01:32.3]} 17. Qf3 {[%clk 0:02:41.6]} 17... Rfe8 {[%clk 0:01:31.6]} 18. Bd2
{[%clk 0:02:39.7]} 18... Qf6 {[%clk 0:01:26.8]} 19. Qxf6 {[%clk 0:02:39.3]}
19... gxf6 {[%clk 0:01:27.1]} 20. Bxh6 {[%clk 0:02:39.7]} 20... f5 {[%clk
0:01:22.9]} 21. a4 {[%clk 0:02:34.3]} 21... Kh7 {[%clk 0:01:22.5]} 22. Bd2
{[%clk 0:02:32.2]} 22... Re4 {[%clk 0:01:20.6]} 23. Bxe4 {[%clk 0:01:52.5]}
23... fxe4 {[%clk 0:01:20.7]} 24. c4 {[%clk 0:01:53]} 24... Bg4 {[%clk
0:01:19.4]} 25. cxd5 {[%clk 0:01:51.8]} 25... cxd5 {[%clk 0:01:19.5]} 26. Be3
{[%clk 0:01:44.8]} 26... Be5 {[%clk 0:01:17.2]} 27. c3 {[%clk 0:01:44.6]} 27...
Bf3 {[%clk 0:01:13.1]} 28. Rad1 {[%clk 0:01:42.7]} 28... Rd8 {[%clk 0:01:00.9]}
29. Bxa7 {[%clk 0:01:39.2]} 29... f5 {[%clk 0:00:59.4]} 30. Be3 {[%clk
0:01:29.2]} 30... f4 {[%clk 0:00:50.6]} 31. Bxf4 {[%clk 0:01:29.8]} 31... Bxf4
{[%clk 0:00:50.7]} 32. gxf4 {[%clk 0:01:30.7]} 32... Rg8+ {[%clk 0:00:51.1]} 33.
Kf1 {[%clk 0:01:12.8]} 33... Rg4 {[%clk 0:00:40.8]} 34. Rxd5 {[%clk 0:01:09]}
34... Rxh4 {[%clk 0:00:41]} 35. Rg5 {[%clk 0:01:09.2]} 35... Rxf4 {[%clk
0:00:34.1]} 36. a5 {[%clk 0:00:59.6]} 36... Kh6 {[%clk 0:00:33.8]} 37. Rg3
{[%clk 0:00:59.4]} 37... Rf5 {[%clk 0:00:24.4]} 38. b4 {[%clk 0:00:57.7]} 38...
Rd5 {[%clk 0:00:24]} 39. Kg1 {[%clk 0:00:55.7]} 39... Rd2 {[%clk 0:00:22]} 40.
Rxf3 {[%clk 0:00:54.4]} 40... exf3 {[%clk 0:00:21.5]} 41. Re3 {[%clk 0:00:54.3]}
1-0

[Event "Early-Titled-Tuesday-Blitz-March-26-2024"]
[Site "Chess.com"]
[Date "2024.03.26"]
[Round "7"]
[White "wonderfultime"]
[Black "Igor_Lysyj"]
[Result "0-1"]
[WhiteElo "2992"]
[BlackElo "2859"]
[TimeControl "180+1"]
[EndTime "9:14:46 PDT"]
[Termination "Igor_Lysyj won by resignation"]

1. d4 {[%clk 0:02:45.9]} 1... Nf6 {[%clk 0:02:54]} 2. Nf3 {[%clk 0:02:46.3]}
2... d5 {[%clk 0:02:53.6]} 3. Bf4 {[%clk 0:02:46.8]} 3... Bf5 {[%clk 0:02:52.2]}
4. c4 {[%clk 0:02:46.8]} 4... e6 {[%clk 0:02:51.4]} 5. Qb3 {[%clk 0:02:47.2]}
5... Nbd7 {[%clk 0:02:50.7]} 6. e3 {[%clk 0:02:46.3]} 6... dxc4 {[%clk 0:02:50]}
7. Bxc4 {[%clk 0:02:45.1]} 7... Nb6 {[%clk 0:02:49.1]} 8. Be2 {[%clk 0:02:32.6]}
8... a5 {[%clk 0:02:47.9]} 9. O-O {[%clk 0:02:22.5]} 9... Be7 {[%clk 0:02:40.1]}
10. Rc1 {[%clk 0:02:03]} 10... c6 {[%clk 0:02:36.7]} 11. Nbd2 {[%clk 0:02:00.4]}
11... a4 {[%clk 0:02:32.6]} 12. Qd1 {[%clk 0:02:00.4]} 12... O-O {[%clk
0:02:29.3]} 13. a3 {[%clk 0:01:59.7]} 13... Rc8 {[%clk 0:02:25.5]} 14. h3 {[%clk
0:01:46.3]} 14... h6 {[%clk 0:02:23.2]} 15. Nc4 {[%clk 0:01:42]} 15... Nxc4
{[%clk 0:02:21.1]} 16. Bxc4 {[%clk 0:01:36.8]} 16... Qa5 {[%clk 0:02:18.7]} 17.
Ne5 {[%clk 0:01:32.4]} 17... Rfd8 {[%clk 0:02:16.8]} 18. Qf3 {[%clk 0:01:20.8]}
18... Be4 {[%clk 0:02:12.8]} 19. Qe2 {[%clk 0:01:20.8]} 19... c5 {[%clk
0:02:08.9]} 20. dxc5 {[%clk 0:00:57.3]} 20... Rxc5 {[%clk 0:02:08.3]} 21. Nf3
{[%clk 0:00:34.8]} 21... Bxf3 {[%clk 0:01:54]} 22. gxf3 {[%clk 0:00:35.1]} 22...
Rdc8 {[%clk 0:01:52.6]} 23. Rc2 {[%clk 0:00:33.1]} 23... Qb6 {[%clk 0:01:18.7]}
24. Rac1 {[%clk 0:00:28.5]} 24... Bd6 {[%clk 0:01:13.4]} 25. Bxd6 {[%clk
0:00:24.4]} 25... Qxd6 {[%clk 0:01:13]} 26. Bd3 {[%clk 0:00:25.2]} 26... Nd7
{[%clk 0:00:52.6]} 27. f4 {[%clk 0:00:18.7]} 27... g6 {[%clk 0:00:46.8]} 28. Be4
{[%clk 0:00:18.7]} 28... Rxc2 {[%clk 0:00:42.8]} 29. Rxc2 {[%clk 0:00:19.6]}
29... Rxc2 {[%clk 0:00:42.1]} 30. Qxc2 {[%clk 0:00:20.5]} 30... Nc5 {[%clk
0:00:41.8]} 31. Bf3 {[%clk 0:00:18.1]} 31... b6 {[%clk 0:00:38.7]} 32. Be2
{[%clk 0:00:18.2]} 32... h5 {[%clk 0:00:34.1]} 33. Qc3 {[%clk 0:00:16.6]} 33...
Qd5 {[%clk 0:00:31.3]} 34. Qb3 {[%clk 0:00:16.1]} 34... axb3 {[%clk 0:00:30.6]}
0-1

[Event "Early-Titled-Tuesday-Blitz-March-26-2024"]
[Site "Chess.com"]
[Date "2024.03.26"]
[Round "7"]
[White "Rsnr"]
[Black "Grischuk"]
[Result "1/2-1/2"]
[WhiteElo "2941"]
[BlackElo "3067"]
[TimeControl "180+1"]
[EndTime "9:14:47 PDT"]
[Termination "Game drawn by repetition"]

1. d4 {[%clk 0:03:00.9]} 1... e6 {[%clk 0:03:00.3]} 2. c4 {[%clk 0:03:00.9]}
2... b6 {[%clk 0:03:00.5]} 3. a3 {[%clk 0:02:59.3]} 3... Bb7 {[%clk 0:02:59.7]}
4. Nc3 {[%clk 0:02:59.7]} 4... f5 {[%clk 0:02:59.6]} 5. d5 {[%clk 0:02:56.9]}
5... Nf6 {[%clk 0:02:59.3]} 6. g3 {[%clk 0:02:55.5]} 6... Bd6 {[%clk 0:02:57.6]}
7. Nf3 {[%clk 0:02:46.4]} 7... O-O {[%clk 0:02:52.1]} 8. Bg2 {[%clk 0:02:46.6]}
8... Na6 {[%clk 0:02:51.8]} 9. O-O {[%clk 0:02:46.4]} 9... Nc5 {[%clk 0:02:51]}
10. Nb5 {[%clk 0:02:22.4]} 10... Qe7 {[%clk 0:02:18.8]} 11. Nxd6 {[%clk
0:02:19.8]} 11... cxd6 {[%clk 0:02:19.7]} 12. Nd4 {[%clk 0:02:18.9]} 12... Rac8
{[%clk 0:02:13.5]} 13. b3 {[%clk 0:01:58.1]} 13... Nfe4 {[%clk 0:01:19.5]} 14.
Bb2 {[%clk 0:01:54.9]} 14... exd5 {[%clk 0:01:15.1]} 15. cxd5 {[%clk 0:01:53.6]}
15... Bxd5 {[%clk 0:01:13.8]} 16. b4 {[%clk 0:01:49.6]} 16... Ne6 {[%clk
0:01:08]} 17. Rc1 {[%clk 0:01:16.5]} 17... Rxc1 {[%clk 0:01:01.5]} 18. Qxc1
{[%clk 0:01:17.4]} 18... Nxd4 {[%clk 0:00:56.2]} 19. Bxd4 {[%clk 0:01:18.3]}
19... Bc6 {[%clk 0:00:51.9]} 20. Qb2 {[%clk 0:01:15.6]} 20... Nf6 {[%clk
0:00:51.1]} 21. Rc1 {[%clk 0:01:02.7]} 21... Bxg2 {[%clk 0:00:50.9]} 22. Kxg2
{[%clk 0:01:03.6]} 22... Qe4+ {[%clk 0:00:43.8]} 23. f3 {[%clk 0:01:03.9]} 23...
Qe6 {[%clk 0:00:43.4]} 24. Kf2 {[%clk 0:00:54.7]} 24... f4 {[%clk 0:00:37.6]}
25. g4 {[%clk 0:00:45.5]} 25... Re8 {[%clk 0:00:32.8]} 26. Bxf6 {[%clk
0:00:38.7]} 26... gxf6 {[%clk 0:00:32.8]} 27. Qd2 {[%clk 0:00:30.4]} 27... Qe3+
{[%clk 0:00:24.9]} 28. Qxe3 {[%clk 0:00:30.8]} 28... Rxe3 {[%clk 0:00:25.1]} 29.
Rc7 {[%clk 0:00:30.6]} 29... Rxa3 {[%clk 0:00:24.9]} 30. Rxd7 {[%clk 0:00:31.2]}
30... Rb3 {[%clk 0:00:16.2]} 31. Rxa7 {[%clk 0:00:29.4]} 31... Rxb4 {[%clk
0:00:16.5]} 32. Rd7 {[%clk 0:00:29.6]} 32... Rd4 {[%clk 0:00:16.9]} 33. Rb7
{[%clk 0:00:30]} 33... Rb4 {[%clk 0:00:17.2]} 34. Rd7 {[%clk 0:00:30.4]} 34...
Rd4 {[%clk 0:00:17.5]} 35. Rb7 {[%clk 0:00:30.7]} 35... Rb4 {[%clk 0:00:17.9]}
36. Rd7 {[%clk 0:00:30.2]} 1/2-1/2

[Event "Early-Titled-Tuesday-Blitz-March-26-2024"]
[Site "Chess.com"]
[Date "2024.03.26"]
[Round "7"]
[White "mortngabriel"]
[Black "Felix-Rose"]
[Result "0-1"]
[WhiteElo "2473"]
[BlackElo "2238"]
[TimeControl "180+1"]
[EndTime "9:14:47 PDT"]
[Termination "Felix-Rose won by resignation"]

1. e4 {[%clk 0:03:00.9]} 1... e5 {[%clk 0:02:58.4]} 2. f4 {[%clk 0:03:00.4]}
2... exf4 {[%clk 0:02:58.7]} 3. Nf3 {[%clk 0:03:00.1]} 3... Nf6 {[%clk
0:02:59.1]} 4. e5 {[%clk 0:03:00.3]} 4... Nh5 {[%clk 0:02:59.3]} 5. d4 {[%clk
0:03:01]} 5... g6 {[%clk 0:02:59.3]} 6. g4 {[%clk 0:02:37.2]} 6... fxg3 {[%clk
0:02:55.3]} 7. Nc3 {[%clk 0:02:35.7]} 7... d6 {[%clk 0:02:46.2]} 8. Bg5 {[%clk
0:02:30.2]} 8... Qd7 {[%clk 0:01:59]} 9. Qd2 {[%clk 0:02:09.6]} 9... h6 {[%clk
0:01:36.8]} 10. Be3 {[%clk 0:02:04.5]} 10... Nc6 {[%clk 0:01:30.4]} 11. O-O-O
{[%clk 0:01:59.5]} 11... dxe5 {[%clk 0:01:23.1]} 12. d5 {[%clk 0:01:59.8]} 12...
Nb4 {[%clk 0:00:53.9]} 13. a3 {[%clk 0:01:49.7]} 13... Qf5 {[%clk 0:00:41.8]}
14. Nh4 {[%clk 0:01:00.5]} 14... Qg4 {[%clk 0:00:25.3]} 15. axb4 {[%clk
0:00:50.7]} 15... Qxh4 {[%clk 0:00:21.9]} 16. Bb5+ {[%clk 0:00:51.1]} 16... Bd7
{[%clk 0:00:18.3]} 17. Bxd7+ {[%clk 0:00:39.9]} 17... Kxd7 {[%clk 0:00:19.2]}
18. Na4 {[%clk 0:00:23.8]} 18... Qxb4 {[%clk 0:00:18.7]} 19. Nc3 {[%clk
0:00:19.3]} 19... gxh2 {[%clk 0:00:17.8]} 20. Rxh2 {[%clk 0:00:18.5]} 20... Bd6
{[%clk 0:00:17.3]} 21. Bxh6 {[%clk 0:00:13.5]} 21... Nf4 {[%clk 0:00:16.1]} 22.
Bxf4 {[%clk 0:00:12]} 22... exf4 {[%clk 0:00:14.5]} 23. Rdh1 {[%clk 0:00:10.3]}
23... Rxh2 {[%clk 0:00:13.5]} 24. Rxh2 {[%clk 0:00:11.2]} 24... f3 {[%clk
0:00:14.1]} 25. Rf2 {[%clk 0:00:11.2]} 25... Bf4 {[%clk 0:00:14.3]} 0-1

[Event "Early-Titled-Tuesday-Blitz-March-26-2024"]
[Site "Chess.com"]
[Date "2024.03.26"]
[Round "7"]
[White "BlueWizzard"]
[Black "Ginger_GM"]
[Result "0-1"]
[WhiteElo "2842"]
[BlackElo "2606"]
[TimeControl "180+1"]
[EndTime "9:14:50 PDT"]
[Termination "Ginger_GM won on time"]

1. Nc3 {[%clk 0:03:00.9]} 1... c5 {[%clk 0:02:56.1]} 2. d4 {[%clk 0:03:00.2]}
2... cxd4 {[%clk 0:02:55.5]} 3. Qxd4 {[%clk 0:03:01.1]} 3... Nc6 {[%clk
0:02:55.3]} 4. Qd3 {[%clk 0:03:01.8]} 4... Nf6 {[%clk 0:02:45.1]} 5. e4 {[%clk
0:03:01.6]} 5... e6 {[%clk 0:02:42.1]} 6. Bf4 {[%clk 0:03:00.8]} 6... Bb4 {[%clk
0:02:35.7]} 7. O-O-O {[%clk 0:02:57.1]} 7... O-O {[%clk 0:02:30.9]} 8. Nge2
{[%clk 0:02:52.3]} 8... d5 {[%clk 0:02:26.3]} 9. exd5 {[%clk 0:02:39]} 9... exd5
{[%clk 0:02:25.3]} 10. Bg5 {[%clk 0:02:36.2]} 10... Be6 {[%clk 0:02:19.1]} 11.
a3 {[%clk 0:02:27.7]} 11... Be7 {[%clk 0:02:04.1]} 12. Nf4 {[%clk 0:02:25.1]}
12... Rc8 {[%clk 0:01:59.3]} 13. Be2 {[%clk 0:02:14.7]} 13... Qa5 {[%clk
0:01:49.1]} 14. Qb5 {[%clk 0:02:03.3]} 14... Qc7 {[%clk 0:01:41.9]} 15. Bf3
{[%clk 0:01:48.6]} 15... d4 {[%clk 0:01:34.9]} 16. Nxe6 {[%clk 0:01:48.7]} 16...
fxe6 {[%clk 0:01:34]} 17. Ne2 {[%clk 0:01:46.7]} 17... e5 {[%clk 0:01:22.3]} 18.
Kb1 {[%clk 0:01:34.8]} 18... Kh8 {[%clk 0:01:12.5]} 19. Ng3 {[%clk 0:01:30.7]}
19... a6 {[%clk 0:01:11.8]} 20. Qe2 {[%clk 0:01:28.5]} 20... Na5 {[%clk
0:01:09]} 21. Nf5 {[%clk 0:01:18.2]} 21... Bxa3 {[%clk 0:01:08.4]} 22. bxa3
{[%clk 0:01:13.2]} 22... Nc4 {[%clk 0:01:04]} 23. Ka2 {[%clk 0:01:00.1]} 23...
Nxa3 {[%clk 0:00:56.6]} 24. Rd3 {[%clk 0:00:37.1]} 24... Nxc2 {[%clk 0:00:54.2]}
25. Rb3 {[%clk 0:00:34.5]} 25... Qa5+ {[%clk 0:00:38.9]} 26. Kb2 {[%clk
0:00:34]} 26... Rc3 {[%clk 0:00:38.4]} 27. Bxf6 {[%clk 0:00:21.1]} 27... Rxb3+
{[%clk 0:00:26.1]} 28. Kxb3 {[%clk 0:00:15.5]} 28... Qc3+ {[%clk 0:00:25.9]} 29.
Ka2 {[%clk 0:00:16.1]} 29... gxf6 {[%clk 0:00:21.4]} 0-1